Cogmind - Beta 13 X1 @@@ ROGUE MODE // 2023.07.18 @ 11:54:34 Player: Minty Result: Destroyed by G-67 Veteran with Plasma Rifle Performance ------------- Evolutions (6) 3000 Regions Visited (13) 2600 Robots Destroyed (213) 1065 Value Destroyed (9208) 9208 Prototype IDs (35) 700 Alien Tech Used (0) 0 Bonus (4102) 4102 TOTAL SCORE: 20675 Bonus ------- High Alert Combat Kills 2514 Follower Combat Kills 638 Entered Garrisons 200 Used RIF Installer 500 Aligned with FarCom 300 Friendly Fire -50 Cogmind --------- Core Integrity 0/1150 Matter 65/300 Energy 65/100 System Corruption 0% Temperature Cool (21) Movement Core (50) Location -4/Factory Parts ------- > --- POWER (1) -------- (None) > --- PROPULSION (6) --- (None) > --- UTILITY (8) ------ Improved System Guard > --- WEAPON (4) ------- (None) > --- INVENTORY (5) ---- Advanced Heat Sink Matter Compressor (250) Drone Bay (2/2) Matter Neutralizer Peak State ------------ > --- POWER ------------ Antimatter Reactor > --- PROPULSION ------- Flexi-carbon Leg Flexi-carbon Leg Flexi-carbon Leg Armored Leg Myomer Leg Advanced VSS Leg > --- UTILITY ---------- Advanced Cooling System High-capacity Storage Unit Advanced Target Analyzer Graphene Brace Hacking Suite Improved Hacking Suite Relay Coupler [NC] Relay Coupler [Sentry] > --- WEAPON ----------- Matter Neutralizer Matter Neutralizer Hypervelocity Gauss Cannon Heavy Gauss Cannon > --- INVENTORY -------- Neutrino Core Antimatter Reactor Carbon-fiber Leg Advanced Heat Sink Matter Compressor Improved Medium Armor Plating Improved Focal Shield Relay Coupler [Grunt] Drone Bay Drone Bay Heavy EM Shotgun Tesla Rifle Phase Gun KE Penetrator Hypervelocity Gauss Cannon Hypervelocity Gauss Cannon Hypervelocity Gauss Cannon Hypervelocity Gauss Cannon Hypervelocity Gauss Cannon Advanced Remote Datajack [Rating: 113] Favorites ----------- Power Light Nuclear Core Engine Improved Deuterium Engine Power Core Light Nuclear Core Reactor Light Antimatter Reactor Propulsion Improved Medium Treads Treads Improved Medium Treads Leg Armored Leg Hover Unit Improved Antigrav System Flight Unit Cooled VTOL Module Utility Medium Storage Unit Device Advanced Heat Sink Storage Medium Storage Unit Processor Advanced Targeting Computer Hackware Hacking Suite Protection Reactive Plating Weapon Improved Assault Rifle Energy Gun Gatling Laser Energy Cannon Matter Neutralizer Ballistic Gun Improved Assault Rifle Ballistic Cannon Enhanced Gauss Cannon Launcher Smartbomb Launcher Special Weapon Advanced Remote Datajack Slashing Weapon Longsword +1 Build | -11 -10 -9 -9 -9 -8 -8 -7 -6 -5 -5 -5 -5 -4 ------- Run | Jun Mat Mat Min Exi Min Mat Fac Fac Fac Gar Fac Ext Fac Slots Evolved 12 | . . 2 . . . 2 2 2 2 . . . 2 Power . | . . . . . . . . . . . . . . Propulsion 4 | . . 1 . . . . 1 . 2 . . . . Utility 6 | . . . . . . 2 1 1 . . . . 2 Weapon 2 | . . 1 . . . . . 1 . . . . . Parts Attached 280 | . 10 14 . . . 32 12 34 28 33 36 23 58 Power 20 | . 2 1 . . . 2 . 4 2 2 2 . 5 Engine 6 | . 1 . . . . . . 2 2 1 . . . Core 9 | . 1 1 . . . 2 . 2 . . 1 . 2 Reactor 5 | . . . . . . . . . . 1 1 . 3 Propulsion 56 | . 2 3 . . . 5 3 10 4 7 4 5 13 Treads 14 | . 2 . . . . . . 6 4 2 . . . Leg 39 | . . 3 . . . 5 2 3 . 4 4 5 13 Wheel . | . . . . . . . . . . . . . . Hover 2 | . . . . . . . . 1 . 1 . . . Flight 1 | . . . . . . . 1 . . . . . . Utility 69 | . 4 1 . . . 7 4 9 8 8 11 4 13 Device 24 | . 2 1 . . . 1 1 4 4 3 5 . 3 Storage 6 | . 2 . . . . . . 1 . 1 2 . . Processor 8 | . . . . . . . 2 1 1 . . . 4 Hackware 12 | . . . . . . . . 3 . . 4 2 3 Protection 19 | . . . . . . 6 1 . 3 4 . 2 3 Artifact . | . . . . . . . . . . . . . . Weapon 135 | . 2 9 . . . 18 5 11 14 16 19 14 27 Energy Gun 33 | . 1 3 . . . 6 3 2 5 4 4 3 2 Energy Cannon 19 | . . 1 . . . . . 3 . 4 5 2 4 Ballistic Gun 37 | . . 4 . . . 10 2 5 3 5 3 3 2 Ballistic Cannon 16 | . . . . . . . . . 2 . 3 . 11 Launcher 17 | . 1 1 . . . 1 . 1 2 3 2 2 4 Special Weapon 10 | . . . . . . . . . . . 2 4 4 Impact Weapon . | . . . . . . . . . . . . . . Slashing Weapon 3 | . . . . . . 1 . . 2 . . . . Piercing Weapon . | . . . . . . . . . . . . . . Special Melee Weapon . | . . . . . . . . . . . . . . Unidentified Prototypes 9 | . . 1 . . . 2 3 . . . 1 . 2 Corrupted Parts 4 | . . . . . . 3 . . . . . . 1 System Corruption 15 | . . . . . . 8 . . . . . . 7 Parts Lost 56 | . 1 . . . . 2 1 8 15 4 1 2 22 Power 8 | . . . . . . 1 . 1 1 1 1 . 3 Propulsion 19 | . . . . . . . . 4 6 1 . 1 7 Utility 11 | . . . . . . . . 2 3 2 . . 4 Weapon 18 | . 1 . . . . 1 1 1 5 . . 1 8 Highest Loss Streak 18 | . 1 . . . . 1 1 4 9 2 1 1 18 To Critical Strikes . | . . . . . . . . . . . . . . Average Slot Usage (%) 89 | . 95 96 100 100 100 99 89 95 91 67 91 98 93 Engine 1 | . 11 1 . . . . . 1 4 3 . . . Core 3 | . 2 9 11 11 11 8 7 3 . . . . . Reactor 1 | . . . . . . . . . . . 4 5 4 Treads 6 | . 15 6 . . . . . 8 28 5 . . . Leg 18 | . 12 24 33 33 33 27 23 15 . 1 32 34 29 Device 8 | . 8 11 11 11 11 9 7 11 7 9 4 5 9 Storage 7 | . 14 11 11 11 11 9 7 6 5 6 8 5 5 Processor 3 | . . . . . . . 5 8 7 1 . . 5 Hackware 7 | . . . . . . . . 9 8 5 10 17 18 Protection 4 | . . . . . . 17 13 . 2 6 4 3 1 Energy Gun 8 | . 18 11 11 11 11 8 16 12 4 7 2 3 1 Energy Cannon 4 | . . . . . . . . 4 7 5 10 8 3 Ballistic Gun 7 | . 6 17 22 22 22 17 5 8 3 4 1 7 1 Ballistic Cannon 1 | . . . . . . . . . 2 . 4 . 9 Naked Turns 2 | . . . . . . . . . . . . . 2 Heaviest Build 116 | 11 20 25 25 25 25 47 46 48 60 81 116 91 110 Greatest Support 180 | 20 40 51 51 51 51 51 63 120 180 68 117 121 121 Greatest Overweight (x) 11 | . . 1 . . . 1 1 1 . 11 1 . 2 Average Overweight (x) . | . . . . . . . . . . 1 . . . Largest Inventory Capacity 20 | . 10 10 10 10 10 10 10 10 10 10 20 20 20 Average Capacity 12 | . 8 10 10 10 10 10 10 10 10 10 18 20 19 Most Carried 20 | . 9 10 10 10 10 10 10 10 10 10 20 20 20 Average Carried 11 | . 7 9 10 10 10 9 9 9 9 9 15 19 19 Final Capacity 20 | 8 10 10 10 10 10 10 10 10 10 10 20 20 5 Final Carried 20 | 6 9 10 10 10 10 10 10 10 9 10 20 19 4 Class Distribution -------------------- 22% | Scavenger-Skirmisher 11% | Gunner 10% | Hacker-Skirmisher 9% | Scavenger-Mutant 9% | Scavenger-Tank 8% | Bothacker-Mutant 6% | Mutant 6% | Scavenger-Gunner 5% | Tank 5% | Bothacker-Skirmisher Dominant Class ---------------- Mutant | -10/Materials Gunner | -9/Materials Gunner | -9/Mines Gunner | -9/Exiles Skirmisher | -8/Mines Tank | -8/Materials Scavenger-Tank | -7/Factory Scavenger-Skirmisher | -6/Factory Hacker-Skirmisher | -5/Factory Scavenger-Skirmisher | -5/Garrison Bothacker-Mutant | -5/Factory Bothacker-Skirmisher | -5/Extension Scavenger-Skirmisher | -4/Factory Resources | -11 -10 -9 -9 -9 -8 -8 -7 -6 -5 -5 -5 -5 -4 ----------- Run | Jun Mat Mat Min Exi Min Mat Fac Fac Fac Gar Fac Ext Fac Matter Collected 6277 | 200 266 442 12 . 36 543 219 945 628 489 764 894 839 Remotely 58 | . . . . . . . 58 . . . . . . Salvage Created 8707 | . 394 614 99 . 44 1349 219 877 1684 833 1028 1127 439 Parts 444 | . 27 38 3 . . 75 6 51 73 38 41 66 26 Haulers Intercepted 2 | . . 1 . . . 1 . . . . . . . Recyclers Shooed 9 | . . . . . . 1 . 2 1 . 2 3 . Parts Field Recycled . | . . . . . . . . . . . . . . Retrieved Matter . | . . . . . . . . . . . . . . Parts Self-Destructed . | . . . . . . . . . . . . . . Prevented . | . . . . . . . . . . . . . . Kills | -11 -10 -9 -9 -9 -8 -8 -7 -6 -5 -5 -5 -5 -4 ------- Run | Jun Mat Mat Min Exi Min Mat Fac Fac Fac Gar Fac Ext Fac Combat Hostiles Destroyed 176 | . 12 12 2 . 1 27 4 13 28 22 24 23 8 Melee 10 | . . . . . . 6 . . 4 . . . . Guns 73 | . 7 12 2 . 1 17 4 10 7 7 3 3 . Cannons 39 | . . . . . . . . . 12 1 8 10 8 AOE 50 | . 5 . . . . 4 . 3 5 13 11 9 . Classes Destroyed 15 | . 3 4 . . 1 2 . 3 1 1 . . . Worker 13 | . . . . . . 3 . 1 5 . 4 . . Builder 4 | . 1 . . . . . . . . . . 1 2 Hauler 2 | . . 1 . . . 1 . . . . . . . Recycler 7 | . . . . . . 1 . 2 3 . . 1 . Operator 3 | . . . . . . . . 2 1 . . . . Watcher 8 | . . 1 . . . 2 . 3 1 1 . . . Swarmer 42 | . 3 . . . . 6 . 5 8 5 3 12 . Cutter 3 | . . . . . . . . . . 3 . . . Grunt 74 | . 9 8 2 . . 15 2 . 12 5 14 3 4 Brawler 4 | . . 1 . . . . . . . 2 1 . . Duelist 3 | . . . . . . . . . 1 2 . . . Protector 1 | . . . . . . . . 1 . . . . . Sentry 25 | . . 3 . . . 5 . 4 3 2 2 6 . Hunter 15 | . . . . . 1 1 2 2 . 2 4 1 2 Programmer 8 | . . . . . . . . 1 4 1 . . 2 Savage 1 | . . . . . . . . . . . . 1 . Best Kill Streak 12 | . 6 3 2 . 1 6 2 3 9 7 12 5 4 Combat Bots Only 7 | . 5 3 2 . 1 5 2 3 5 7 6 5 2 Max Kills in Single Turn 9 | . 4 1 2 . 1 3 1 2 9 3 4 4 1 Gunslinging 1 | . . . 1 . . . . 1 . . . . . Exploded 5 | . 3 . . . . 2 . 2 5 3 3 4 . Melee 1 | . . . . . . 1 . . 1 . . . . Uniques/NPCs Destroyed . | . . . . . . . . . . . . . . Combat | -11 -10 -9 -9 -9 -8 -8 -7 -6 -5 -5 -5 -5 -4 -------- Run | Jun Mat Mat Min Exi Min Mat Fac Fac Fac Gar Fac Ext Fac Damage Taken 15603 | . 609 208 11 . 171 952 120 1237 2851 1384 2064 1291 4705 Core 2361 | . 136 35 . . 47 100 26 149 274 223 142 76 1153 Absorbed by Shields 40 | . . . . . . . . . . . 40 . . Ignored by Resistances 124 | . . . . . . 63 20 . 41 . . . . Regen/Repaired (Parts) 313 | . . 66 . . . . . 39 . . 82 . 126 Core Remaining (%) 73 | 100 45 . . . 79 81 96 82 . . . 28 . Volleys Fired 451 | . 32 27 3 . 5 55 10 57 51 59 56 48 48 Largest 4 | . 2 3 3 . 3 3 3 4 4 4 4 4 4 Hottest 390 | . 80 109 102 . 102 123 196 278 282 390 312 246 336 Shots Fired 1132 | . 62 78 9 . 15 144 30 135 164 139 118 135 103 Gun 729 | . 59 76 9 . 15 142 30 111 73 121 20 56 17 Cannon 335 | . . . . . . . . 22 87 9 76 69 72 Launcher 40 | . 3 2 . . . 2 . 2 4 9 7 7 4 Special 28 | . . . . . . . . . . . 15 3 10 Kinetic 526 | . 24 49 6 . 10 103 2 60 63 59 31 53 66 Thermal 497 | . 35 27 3 . 5 27 20 63 97 71 65 70 14 Explosive 32 | . 3 2 . . . 2 . 2 . 9 7 7 . Electromagnetic 49 | . . . . . . 12 8 10 4 . . 2 13 Robot Hit Streak 13 | . 5 9 9 . 4 10 11 13 13 13 12 10 11 Robot Miss Streak 7 | . 3 3 2 . 2 3 3 5 3 4 6 7 5 Penetration Max 1 | . . . . . . . . . 1 . 1 1 . Secondary Targets 7 | . 2 2 1 . . 1 . 1 . . . . . Max Gunslinging Chain 1 | . 1 1 1 . . 1 . 1 . . . . . Shots Hit Robots 697 | . 37 46 7 . 10 96 22 95 122 65 70 63 64 Core Hits 386 | . 20 21 4 . 3 58 9 52 70 40 46 38 25 Critical Kills 10 | . . . . . . . . . 2 3 1 1 3 Critical Parts Destroyed 11 | . . . . . . . . . 1 1 . . 9 Critical Strikes 45 | . . 3 . . 1 5 1 1 10 5 4 1 14 Burn 11 | . . 3 . . 1 5 1 . . 1 . . . Meltdown 3 | . . . . . . . . . . 1 1 1 . Destroy 18 | . . . . . . . . . 3 3 . . 12 Blast 9 | . . . . . . . . . 4 . 3 . 2 Corrupt 1 | . . . . . . . . 1 . . . . . Sever 3 | . . . . . . . . . 3 . . . . Melee Attacks 24 | . . . . . . 11 . . 13 . . . . Impact . | . . . . . . . . . . . . . . Slashing 24 | . . . . . . 11 . . 13 . . . . Piercing . | . . . . . . . . . . . . . . Sneak Attacks . | . . . . . . . . . . . . . . Combat Hostiles . | . . . . . . . . . . . . . . Follow-up Attacks . | . . . . . . . . . . . . . . Damage Inflicted 23303 | . 664 735 101 . 123 2573 451 2173 4831 2871 3962 2855 1964 Guns 8481 | . 421 708 101 . 123 1491 451 1573 1235 1218 267 706 187 Cannons 6304 | . . . . . . . . 215 1787 220 1493 1147 1442 Explosions 7255 | . 230 27 . . . 571 . 349 1230 1415 2121 1002 310 Melee 1043 | . . . . . . 501 . . 542 . . . . Ramming 220 | . 13 . . . . 10 . 36 37 18 81 . 25 Kinetic 6438 | . 169 429 73 . 63 913 . 618 1143 617 589 696 1128 Thermal 8631 | . 252 279 28 . 60 542 327 1051 1879 821 1819 1147 426 Explosive 5766 | . 230 27 . . . 380 . 349 890 1415 1473 1002 . Electromagnetic 1205 | . . . . . . 227 124 119 340 . . 10 385 Impact . | . . . . . . . . . . . . . . Slashing 1043 | . . . . . . 501 . . 542 . . . . Piercing . | . . . . . . . . . . . . . . Highest Corruption 10 | . . . . . . 8 5 2 2 3 5 5 10 Average Corruption 2 | . . . . . . 5 4 1 1 2 3 5 1 Corruption Purged 1 | . . . . . . . . . 1 . . . . Corruption Blocked . | . . . . . . . . . . . . . . Effects 126 | . . . . . . 11 11 15 7 36 18 19 9 Message Errors 30 | . . . . . . 3 3 4 2 10 3 4 1 Matter Fused 28 | . . . . . . 3 3 3 1 9 4 4 1 Heat Flow Errors 12 | . . . . . . 1 1 . 2 4 2 2 . Energy Discharges 21 | . . . . . . 2 1 3 . 6 3 5 1 Parts Rejected 1 | . . . . . . . . . 1 . . . . Parts Fused 2 | . . . . . . . . . . 2 . . . Data Loss (minor) 13 | . . . . . . 1 2 2 . 3 2 1 2 Data Loss (major) 6 | . . . . . . . 1 1 1 1 1 . 1 Misfires 3 | . . . . . . 1 . . . . 1 . 1 Alerts 4 | . . . . . . . . . . 1 . 3 . Misdirections 1 | . . . . . . . . . . . . . 1 Weapon Failures 5 | . . . . . . . . 2 . . 2 . 1 Overload Shots 5 | . . . . . . . . . . 2 3 . . Overflow Damage 868 | . . . . . . 99 . 40 221 113 192 101 102 Projectiles 183 | . . . . . . . . . 30 31 9 21 92 Explosions 480 | . . . . . . . . 40 124 82 154 80 . Melee 205 | . . . . . . 99 . . 67 . 29 . 10 Knockbacks 17 | . . . . . . . . . 3 . 5 . 9 Impact 2 | . . . . . . . . . . . 1 . 1 Kinetic 14 | . . . . . . . . . 3 . 3 . 8 Secondary 1 | . . . . . . . . . . . 1 . . Self-Inflicted Damage 507 | . 12 12 . . . 124 . 85 103 . 94 51 26 Shots 13 | . 2 1 . . . 2 . 1 3 . 2 1 1 Rammed 16 | . 2 . . . . . . 1 5 8 . . . Targets Rammed 32 | . 5 . . . . 3 1 4 8 8 2 . 1 Kicked 12 | . 3 . . . . 3 1 2 . . 2 . 1 Crushed 4 | . . . . . . . . 1 3 . . . . Highest Temperature 461 | . 110 82 5 . . 191 288 234 309 336 461 350 308 Average Temperature 77 | . 40 27 4 . . 37 102 60 93 103 126 81 54 Received Heat Transfer 3234 | . 267 90 6 . . 423 27 90 891 117 383 84 856 Effects 4 | . . . . . . . . . . 1 2 1 . Shutdowns 1 | . . . . . . . . . . . . 1 . Energy Bleed 1 | . . . . . . . . . . . 1 . . Interference 2 | . . . . . . . . . . 1 1 . . Siege Activations . | . . . . . . . . . . . . . . Robots Corrupted . | . . . . . . . . . . . . . . Combat Hostiles . | . . . . . . . . . . . . . . Parts Fried 2 | . . . . . . 2 . . . . . . . Impact Corruptions 2 | . . . . . . . . . . . 1 . 1 Robots Melted 4 | . . . . . . . . . . 1 2 1 . Combat Hostiles 3 | . . . . . . . . . . 1 2 . . Parts Melted 20 | . . 1 . . . . 1 9 4 2 . 3 . Heat Transferred 14036 | . 575 925 74 . 222 1223 758 2224 3315 1308 1784 1221 407 Parts Sabotaged . | . . . . . . . . . . . . . . Parts Stolen . | . . . . . . . . . . . . . . Parts Stripped . | . . . . . . . . . . . . . . Power Chain Reactions 2 | . . . . . . 2 . . . . . . . Missiles Intercepted . | . . . . . . . . . . . . . . Alert | -11 -10 -9 -9 -9 -8 -8 -7 -6 -5 -5 -5 -5 -4 ------- Run | Jun Mat Mat Min Exi Min Mat Fac Fac Fac Gar Fac Ext Fac Peak Influence 1645 | . 382 320 169 . 45 514 333 212 719 1502 1645 1511 921 Initial 805 | . . 76 119 . . 17 233 86 62 474 788 805 739 Average 583 | . 158 195 166 . 12 326 237 97 439 1090 926 1161 795 Maximum Alert Level 5 | . 1 1 . . . 2 1 1 3 4 5 4 3 Low Security (%) 26 | . 87 43 100 . 100 11 20 90 17 . . . . Level 1 19 | . 12 56 . . . 64 79 9 27 . . . . Level 2 13 | . . . . . . 24 . . 54 13 21 . 5 Level 3 20 | . . . . . . . . . 1 19 56 39 94 Level 4 18 | . . . . . . . . . . 67 15 60 . Level 5 . | . . . . . . . . . . . 6 . . High Security . | . . . . . . . . . . . . . . Max Security . | . . . . . . . . . . . . . . Squads Dispatched 50 | . 3 4 . . . 3 3 5 9 . 11 4 8 Investigation 15 | . 2 2 . . . 1 1 2 2 . 3 1 1 Extermination 6 | . . . . . . . 1 1 2 . . . 2 Reinforcement 17 | . 1 2 . . . 2 1 2 2 . 3 2 2 Assault 7 | . . . . . . . . . . . 3 1 3 Garrison 5 | . . . . . . . . . 3 . 2 . . Intercept . | . . . . . . . . . . . . . . Searches Triggered . | . . . . . . . . . . . . . . Construction Impeded 3 | . . . . . . . . . . . 1 2 . Haulers Reinforced 1 | . . . . . . . . . 1 . . . . Active Scanning Responses . | . . . . . . . . . . . . . . Cargo Convoy Interrupts 1 | . . . . . . . . 1 . . . . . Stealth | -11 -10 -9 -9 -9 -8 -8 -7 -6 -5 -5 -5 -5 -4 --------- Run | Jun Mat Mat Min Exi Min Mat Fac Fac Fac Gar Fac Ext Fac Distress Signals 12 | . . . . . . 6 . 2 . . 1 1 2 Communications Jammed . | . . . . . . . . . . . . . . Distress Signals . | . . . . . . . . . . . . . . Times Spotted 257 | . 15 14 2 . 1 40 6 18 45 13 27 34 42 Peak Tracking Total 22 | . 4 5 2 . 1 5 1 3 7 3 6 5 22 Tactical Retreats 10 | . . . . . . . . . 8 . . 2 . Traps | -11 -10 -9 -9 -9 -8 -8 -7 -6 -5 -5 -5 -5 -4 ------- Run | Jun Mat Mat Min Exi Min Mat Fac Fac Fac Gar Fac Ext Fac Traps Triggered 8 | . 1 1 . . . . . 1 1 1 . 3 . Indirectly . | . . . . . . . . . . . . . . Trap Hack Attempts . | . . . . . . . . . . . . . . Triggered . | . . . . . . . . . . . . . . Disarmed . | . . . . . . . . . . . . . . Reprogrammed . | . . . . . . . . . . . . . . Reused . | . . . . . . . . . . . . . . Traps Extracted . | . . . . . . . . . . . . . . Installed . | . . . . . . . . . . . . . . Triggered 2 | . . . . . . . . 2 . . . . . Machines | -11 -10 -9 -9 -9 -8 -8 -7 -6 -5 -5 -5 -5 -4 ---------- Run | Jun Mat Mat Min Exi Min Mat Fac Fac Fac Gar Fac Ext Fac Machines Disabled 44 | . 2 1 . . . 2 2 5 6 4 10 2 10 Max in Single Turn 4 | . 1 1 . . . 2 1 3 2 1 4 1 2 Garrison Access 3 | . . . . . . . . . . . 2 . 1 Garrison Relay 2 | . . . . . . . . . . 2 . . . Machines Repaired . | . . . . . . . . . . . . . . Machines Sabotaged . | . . . . . . . . . . . . . . Overloaded Fab Kills . | . . . . . . . . . . . . . . Hacking | -11 -10 -9 -9 -9 -8 -8 -7 -6 -5 -5 -5 -5 -4 --------- Run | Jun Mat Mat Min Exi Min Mat Fac Fac Fac Gar Fac Ext Fac Machines Accessed 47 | . 4 3 . 1 . 5 3 10 4 2 6 7 2 Terminals 21 | . 3 2 . . . 4 . 1 . 2 2 7 . Fabricators 7 | . . . . . . . 2 2 2 . 1 . . Repair Stations 4 | . . 1 . . . . . 1 . . 1 . 1 Recycling Units 9 | . 1 . . . . 1 1 4 1 . . . 1 Scanalyzers 2 | . . . . . . . . 2 . . . . . Garrison Access 3 | . . . . . . . . . 1 . 2 . . Total Hacks 126 | . 12 12 . 1 . 15 9 30 10 4 14 14 5 Successful 78 | . 7 8 . 1 . 10 4 16 6 2 9 10 5 Failed 47 | . 4 4 . . . 5 5 14 4 2 5 4 . Catastrophic 6 | . . . . . . 2 1 1 2 . . . . Database Lockouts 1 | . 1 . . . . . . . . . . . . Manual 41 | . 10 6 . 1 . 8 . 4 4 . 4 4 . Terminals 58 | . 11 7 . . . 13 . 4 . 4 5 14 . Fabricators 20 | . . . . . . . 5 6 7 . 2 . . Repair Stations 12 | . . 5 . . . . . 2 . . 3 . 2 Recycling Units 19 | . 1 . . . . 2 4 7 2 . . . 3 Scanalyzers 11 | . . . . . . . . 11 . . . . . Garrison Access 5 | . . . . . . . . . 1 . 4 . . Terminal Hacks 18 | . 3 2 . 1 . 3 . . . 2 . 7 . Record 1 | . . 1 . . . . . . . . . . . Robot Analysis 1 | . 1 . . . . . . . . . . . . Prototype ID Bank 2 | . 2 . . . . . . . . . . . . Open Door 4 | . . . . . . . . . . . . 4 . Emergency Access Points 1 | . . . . . . . . . . 1 . . . Terminal Index 1 | . . . . . . . . . . . . 1 . Alert Level 2 | . . . . . . 1 . . . . . 1 . Unreport Threat 1 | . . . . . . . . . . . . 1 . Dispatch Records 1 | . . 1 . . . . . . . . . . . Assault Status 1 | . . . . . . 1 . . . . . . . Hauler Manifests 1 | . . . . . . 1 . . . . . . . Patrol Navigation 1 | . . . . . . . . . . 1 . . . Derelict Proto ID Bank 1 | . . . . 1 . . . . . . . . . Fabricator Hacks 8 | . . . . . . . 2 3 1 . 2 . . Network Status 2 | . . . . . . . 1 1 . . . . . Load Schematic 2 | . . . . . . . . 1 . . 1 . . Build 4 | . . . . . . . 1 1 1 . 1 . . Repair Station Hacks 10 | . . 4 . . . . . 2 . . 2 . 2 Scan Component 5 | . . 2 . . . . . 1 . . 1 . 1 Repair 5 | . . 2 . . . . . 1 . . 1 . 1 Recycling Unit Hacks 14 | . 1 . . . . 2 2 4 2 . . . 3 Process 2 | . . . . . . . 1 . . . . . 1 Report Inventory 10 | . 1 . . . . 1 1 4 2 . . . 1 Retrieve Matter 1 | . . . . . . . . . . . . . 1 Retrieve Components 1 | . . . . . . 1 . . . . . . . Scanalyzer 5 | . . . . . . . . 5 . . . . . Insert Component 2 | . . . . . . . . 2 . . . . . Analyze 3 | . . . . . . . . 3 . . . . . Garrison Access Hacks 4 | . . . . . . . . . 1 . 3 . . Unlock Access 1 | . . . . . . . . . 1 . . . . Seal Access 1 | . . . . . . . . . . . 1 . . Coupler Status 2 | . . . . . . . . . . . 2 . . Unauthorized Hacks 19 | . 3 2 . . . 5 . 2 2 . 2 3 . Terminals 15 | . 3 2 . . . 5 . 1 . . 1 3 . Botnet 13 | . 2 2 . . . 4 . 1 . . 1 3 . Detonate 1 | . . . . . . 1 . . . . . . . Disrupt 1 | . 1 . . . . . . . . . . . . Fabricators 3 | . . . . . . . . 1 2 . . . . Prioritize 1 | . . . . . . . . . 1 . . . . Fabnet 2 | . . . . . . . . 1 1 . . . . Repair Stations . | . . . . . . . . . . . . . . Recycling Units . | . . . . . . . . . . . . . . Scanalyzers . | . . . . . . . . . . . . . . Garrison Access 1 | . . . . . . . . . . . 1 . . Eject 1 | . . . . . . . . . . . 1 . . Data Cores Recovered 1 | . . . . . . . . 1 . . . . . Used 1 | . . . . . . . . 1 . . . . . Hacking Detections 32 | . 2 3 . . . 4 2 8 2 1 4 4 2 Full Trace Events 11 | . 1 1 . . . 1 1 2 1 . 2 1 1 Feedback Events 5 | . . . . . . . 1 1 2 . 1 . . Corruption 4 | . . . . . . . 1 1 1 . 1 . . Hackware Fried 1 | . . . . . . . . . 1 . . . . Feedback Blocked . | . . . . . . . . . . . . . . Robot Schematics Acquired . | . . . . . . . . . . . . . . Robots Built 4 | . . . . . . . . . 4 . . . . Authchips . | . . . . . . . . . . . . . . Time 134 | . . . . . . . . . 134 . . . . Total Robot Build Rating 16 | . . . . . . . . . 16 . . . . Part Schematics Acquired 2 | . . . . . . . . 2 . . . . . Parts Built 3 | . . . . . . . 1 1 . . 1 . . Authchips . | . . . . . . . . . . . . . . Time 258 | . . . . . . . 84 116 . . 58 . . Total Part Build Rating 10 | . . . . . . . 4 3 . . 3 . . Parts Repaired 5 | . . 2 . . . . . 1 . . 1 . 1 Time 232 | . . 76 . . . . . 50 . . 56 . 50 Parts Recycled . | . . . . . . . . . . . . . . Recycled Matter 278 | . . . . . . . 26 . . . . . 252 Retrieved Matter 293 | . . . . . . . . . . . . . 293 Retrieved Components 9 | . . . . . . 9 . . . . . . . Parts Scanalyzed 2 | . . . . . . . . 2 . . . . . Part Schematics Acquired 2 | . . . . . . . . 2 . . . . . Parts Damaged 1 | . . . . . . . . 1 . . . . . Bothacking | -11 -10 -9 -9 -9 -8 -8 -7 -6 -5 -5 -5 -5 -4 ------------ Run | Jun Mat Mat Min Exi Min Mat Fac Fac Fac Gar Fac Ext Fac Used RIF Installer 1 | . . . . . . . . . . 1 . . . Robots Hacked 25 | . . . . . . . . . . . 12 4 9 Non-combat 3 | . . . . . . . . . . . 3 . . Combat 22 | . . . . . . . . . . . 9 4 9 Robot Hacks Applied 20 | . . . . . . . . . . . 11 3 6 parse_system 1 | . . . . . . . . . . . 1 . . generate_echo 1 | . . . . . . . . . . . 1 . . ignore_repairs 1 | . . . . . . . . . . . 1 . . check_alert 1 | . . . . . . . . . . . 1 . . amplify_resonance 4 | . . . . . . . . . . . 2 . 2 wipe_record 1 | . . . . . . . . . . . 1 . . reboot_system 1 | . . . . . . . . . . . . . 1 go_dormant 2 | . . . . . . . . . . . 1 1 . overwrite_iff 2 | . . . . . . . . . . . 1 . 1 formatsys_high 6 | . . . . . . . . . . . 2 2 2 Relay Couplers Released 17 | . . . . . . . . . . 12 3 . 2 Ejected 3 | . . . . . . . . . . . 3 . . Machine Destruction 11 | . . . . . . . . . . 9 . . 2 Programmers 3 | . . . . . . . . . . 3 . . . Attached 8 | . . . . . . . . . . . 4 2 2 Fabnet Peak Effective % 4 | . . . . . . . . . 3 3 3 3 4 Autooverrided 5 | . . . . . . . . . . . 1 1 3 Robots Rewired 3 | . . . . . . . . . . . . 3 . Allies Hacked . | . . . . . . . . . . . . . . Hacks Repelled . | . . . . . . . . . . . . . . Allies | -11 -10 -9 -9 -9 -8 -8 -7 -6 -5 -5 -5 -5 -4 -------- Run | Jun Mat Mat Min Exi Min Mat Fac Fac Fac Gar Fac Ext Fac Total Allies 23 | . . . . . . . . . 4 . 4 9 6 Largest Group 6 | . . . . . . . . . 4 . 2 6 3 Highest-Rated Group 387 | . . . . . . . . . 48 . 70 387 96 Highest-Rated Ally 159 | . . . . . . . . . 12 . 41 159 49 Total Orders . | . . . . . . . . . . . . . . Ally Attacks 144 | . . . . . . . . . 28 . 14 51 51 Total Damage 3335 | . . . . . . . . . 307 . 280 1805 943 Kills 19 | . . . . . . . . . 3 . 1 11 4 Allies Corrupted . | . . . . . . . . . . . . . . Allies Melted 1 | . . . . . . . . . . . . . 1 Intel | -11 -10 -9 -9 -9 -8 -8 -7 -6 -5 -5 -5 -5 -4 ------- Run | Jun Mat Mat Min Exi Min Mat Fac Fac Fac Gar Fac Ext Fac Robot Analysis Total 1 | . 1 . . . . . . . . . . . . Derelict Logs Recovered . | . . . . . . . . . . . . . . Drone Launches . | . . . . . . . . . . . . . . Drone Recoveries . | . . . . . . . . . . . . . . Exploration | -11 -10 -9 -9 -9 -8 -8 -7 -6 -5 -5 -5 -5 -4 ------------- Run | Jun Mat Mat Min Exi Min Mat Fac Fac Fac Gar Fac Ext Fac Turns Passed 10238 | . 418 643 91 315 71 1096 506 1635 967 1922 901 699 974 Spaces Moved 5368 | 1 209 331 62 242 43 544 235 1037 423 717 523 403 598 Core 10 | . . . . . . . . . . 3 . . 7 Treads 1467 | . 119 49 . . . . . 294 423 582 . . . Legs 3870 | 1 90 282 62 242 43 544 235 743 . 111 523 403 591 Wheels . | . . . . . . . . . . . . . . Hover 21 | . . . . . . . . . . 21 . . . Flight . | . . . . . . . . . . . . . . Fastest Speed 50 | 120 120 130 130 130 130 120 120 100 160 165 117 118 50 Average Speed 146 | 120 142 134 130 130 130 147 149 129 160 231 125 118 117 Slowest Speed 600 | 120 160 200 130 130 130 196 190 240 165 600 186 120 260 Overloaded Moves . | . . . . . . . . . . . . . . Propulsion Burnouts . | . . . . . . . . . . . . . . Robots Hopped . | . . . . . . . . . . . . . . Cave-ins Triggered . | . . . . . . . . . . . . . . Exploration Rate (%) 28 | 1 40 32 18 61 15 46 8 27 12 60 14 50 18 Regions Visited 13 Branch Regions 4 Pre-discovered Areas . | . . . . . . . . . . . . . . Known Exits Taken 1 | . . . . . . . . . 1 . . . . Unknown Exits Taken 11 | 1 1 1 1 1 1 1 1 1 . . 1 1 . Scrap Searched . | . . . . . . . . . . . . . . Spaces Dug 10 | . . . . . . . . . . . . 10 . Terrain Destroyed 560 | . 15 27 . . . 40 . 21 58 93 176 120 10 Melee . | . . . . . . . . . . . . . . Projectile 92 | . . . . . . . . 3 20 4 23 32 10 AOE 468 | . 15 27 . . . 40 . 18 38 89 153 88 . Terrain Rammed . | . . . . . . . . . . . . . . Walls Destroyed . | . . . . . . . . . . . . . . Machines Disabled . | . . . . . . . . . . . . . . Actions | -11 -10 -9 -9 -9 -8 -8 -7 -6 -5 -5 -5 -5 -4 --------- Run | Jun Mat Mat Min Exi Min Mat Fac Fac Fac Gar Fac Ext Fac Total 6856 | . 266 483 66 243 47 714 368 1220 577 862 685 534 791 Wait 376 | . 1 78 . . . 31 94 56 37 8 39 11 21 Move 5355 | . 208 330 61 241 42 543 235 1036 422 715 522 402 598 Hop . | . . . . . . . . . . . . . . Pick Up 98 | . 3 14 1 1 . 11 5 10 4 9 10 10 20 Fast Attach 112 | . 4 5 . . . 9 7 18 15 21 13 4 16 Attach 58 | . 3 1 . . . 3 1 3 6 8 9 7 17 Detach 45 | . 3 1 . . . . 1 2 3 8 11 6 10 Swap 112 | . 3 8 . . . 21 5 13 7 4 14 12 25 Drop 170 | . 4 19 1 1 . 27 10 21 11 20 8 13 35 Fire 451 | . 32 27 3 . 5 55 10 57 51 59 56 48 48 Melee 24 | . . . . . . 11 . . 13 . . . . Ram . | . . . . . . . . . . . . . . Kick 11 | . 3 . . . . 3 . 2 . . 2 . 1 Crush 20 | . 2 . . . . . . 2 8 8 . . . Escape Stasis 8 | . . . . . . . . . . 2 . 6 . Rewire 16 | . . . . . . . . . . . 1 15 . Trap . | . . . . . . . . . . . . . . Miscellaneous . | . . . . . . . . . . . . . . Route ------- -11/Junkyard -10/Materials (discovered 2 exits: *Mat / [*Min]) -9/Materials -9/Mines -9/Exiles -8/Mines -8/Materials -7/Factory -6/Factory -5/Factory (discovered 2 exits: *Fac / Gar) -5/Garrison (discovered 2 exits: *Fac x2) -5/Factory -5/Extension -4/Factory History --------- Turn | Location | Event 1 | -11/Junkyard | Discovered new exit (range 0) 1 | -11/Junkyard | Entered Materials 101 | -10/Materials | Central database locked down 162 | -10/Materials | Discovered new exit (range 11) 300 | -10/Materials | Build established: Mutant 344 | -10/Materials | Core integrity fell below 50% 398 | -10/Materials | Discovered new exit (range 8) 419 | -10/Materials | Entered another Materials area 419 | -9/Materials | Evolved 2 slots: Propulsion x1, Weapon x1 513 | -9/Materials | Repaired Lgt. Nuclear Core 553 | -9/Materials | Repaired Imp. Heat Sink 716 | -9/Materials | Build established: Gunner 1009 | -9/Materials | Discovered new exit (range 6) 1062 | -9/Materials | Entered Mines 1145 | -9/Mines | Deemed a non-threat by the Exiles lab entrance 1147 | -9/Mines | Discovered new exit (range 5) 1153 | -9/Mines | Entered Exiles 1186 | -9/Exiles | Met 8R-AWN 1208 | -9/Exiles | Met EX-HEX 1242 | -9/Exiles | Met EX-BIN 1257 | -9/Exiles | Aligned with FarCom system 1259 | -9/Exiles | Given EX-Vault access code 1290 | -9/Exiles | Opened EX-Vault 1306 | -9/Exiles | Found Longsword +1 1334 | -9/Exiles | Warned to stay clear of 0b10 Research branches 1380 | -9/Exiles | Met EX-DEC 1453 | -9/Exiles | Discovered new exit (range 14) 1468 | -9/Exiles | Left Exiles lab with Longsword +1 1468 | -9/Exiles | Entered Mines 1505 | -8/Mines | Discovered new exit (range 8) 1539 | -8/Mines | Entered Materials 1539 | -8/Materials | Evolved 2 slots: Utility x2 1986 | -8/Materials | Build established: Tank 2536 | -8/Materials | Discovered new exit (range 6) 2616 | -8/Materials | Build established: Scavenger-Tank 2635 | -8/Materials | Entered Factory 2635 | -7/Factory | Evolved 2 slots: Propulsion x1, Utility x1 2779 | -7/Factory | Fabricated Lightning Gun (x1) 3108 | -7/Factory | Discovered new exit (range 17) 3141 | -7/Factory | Entered another Factory area 3141 | -6/Factory | Evolved 2 slots: Utility x1, Weapon x1 3447 | -6/Factory | Lost 4 parts (1p2u1w) 3859 | -6/Factory | Build established: Scavenger-Skirmisher 3872 | -6/Factory | Fabricated Hvy. EM Shotgun? 4169 | -6/Factory | Cargo convoy interrupted 4525 | -6/Factory | Repaired Adv. Heat Sink? 4763 | -6/Factory | Build established: Hacker-Skirmisher 4771 | -6/Factory | Discovered new exit (range 4) 4776 | -6/Factory | Entered another Factory area 4776 | -5/Factory | Evolved 2 slots: Propulsion x2 4965 | -5/Factory | Fabricated S-27 Virus (x4) 5144 | -5/Factory | Discovered new exit (range 16) 5294 | -5/Factory | Imp. System Shield fried by hacking feedback 5401 | -5/Factory | Garrison activated, responded to threat 5468 | -5/Factory | Lost 5 parts (3n1u1w) 5706 | -5/Factory | Lost 9 parts (1p3n1u4w) 5741 | -5/Factory | Identified exit to Garrison 5743 | -5/Factory | Entered Garrison 5778 | -5/Garrison | Triggered checkpoint 5870 | -5/Garrison | Triggered checkpoint 5934 | -5/Garrison | Garrison Relay disabled 6179 | -5/Garrison | Triggered checkpoint 6220 | -5/Garrison | Destroyed 7 combat bots 6529 | -5/Garrison | Discovered new exit (range 11) 6564 | -5/Garrison | Build established: Scavenger-Mutant 6708 | -5/Garrison | Triggered checkpoint 6956 | -5/Garrison | Discovered new exit (range 14) 7059 | -5/Garrison | Build established: Scavenger-Skirmisher 7228 | -5/Garrison | Triggered checkpoint 7316 | -5/Garrison | Garrison Relay disabled 7400 | -5/Garrison | Installed Relay Interface Framework 7665 | -5/Garrison | Entered Factory 7708 | -5/Factory | Build established: Bothacker-Mutant 8177 | -5/Factory | Core integrity fell below 50% 8191 | -5/Factory | Repaired Smartbomb Launcher 8533 | -5/Factory | Fabricated Hvy. EM Shotgun (x1) 8540 | -5/Factory | Discovered new exit (range 13) 8565 | -5/Factory | First assault squad dispatched 8566 | -5/Factory | Entered Extension 8584 | -5/Extension | Disrupted transfer network 8917 | -5/Extension | Rescued a captive Derelict 8987 | -5/Extension | Rescued a captive Derelict 8998 | -5/Extension | Rescued a captive Derelict 9019 | -5/Extension | Spotted B-75 Beast 9041 | -5/Extension | Assimilated Beast 6a with formatsys_high 9058 | -5/Extension | Spotted B-75 Beast 9060 | -5/Extension | Allies destroyed B-75 Beast 9166 | -5/Extension | First assault squad dispatched 9187 | -5/Extension | Rescued A7 9258 | -5/Extension | Discovered new exit (range 3) 9265 | -5/Extension | Entered Factory 9265 | -4/Factory | Accompanied by 4 allies (A7) 9265 | -4/Factory | Evolved 2 slots: Utility x2 9344 | -4/Factory | Spotted B-86 Titan 9346 | -4/Factory | Build established: Scavenger-Skirmisher 9375 | -4/Factory | Allies destroyed B-86 Titan 9405 | -4/Factory | Lost 4 parts (1n2u1w) 9482 | -4/Factory | Found Quantum Capacitor 9683 | -4/Factory | Repaired Flexi-carbon Leg 10015 | -4/Factory | First assault squad dispatched 10221 | -4/Factory | Core integrity fell below 50% 10228 | -4/Factory | System corruption reached 10% 10235 | -4/Factory | Core integrity fell below 20% 10235 | -4/Factory | Released all parts (6) 10239 | -4/Factory | Destroyed by G-67 Veteran with Plasma Rifle Last Messages --------------- 10233_ P-70 Sage resets H-77 Assassin, system corruption cleaned. 10233_ U-05 Engineer lays Concrete. 10234_ Hyp. Gauss Cannon destroyed. 10234_ U-05 Engineer lays Concrete. 10234_ Penetrated by Slug. 10234_ Slug penetrates Construction Platform. 10235_ Released Imp. Hacking Suite. 10235_ Released Graphene Brace. 10235_ Released Adv. Target Analyzer. 10235_ Released Relay Coupler [NC]. 10235_ Released Hcp. Storage Unit. 10235_ Released Relay Coupler [Grunt]. 10235_ H-77 Assassin destroyed. 10235_ P-70 Sage resets L-61 Swordsman, system corruption cleaned. 10236_ System corrupted: Component data lost. 10236_ U-05 Engineer lays Concrete. 10237_ P-70 Sage resets G-67 Veteran, system corruption cleaned. 10238_ U-05 Engineer lays Concrete. 10238_ Critical hit (Burn: +37). 10239_ U-05 Engineer lays Concrete. Map ----- +----------------------------------------------------+ | # #????????????????????????????????????????? | | # #??????""????????????????????????????????? | | # #???? ????????????????????????????????? | | # #??""""""""" ????????????????????????????? | | # [ # ??????????????????????????????? | | # = + """""?????????????????????????????????? | | # * # ??????????????????????????????? | | # # """"""""" ????????????????????????????? | | ### #? ? ????????????????????????????????? | | #?# #? ""??""????????????????????????????????? | | # #?? ????????????????????????????????????? | | # #??##????????????????????????????????????? | | ##???????????????????????????????????????? | | % %*##???????????????????????????????????????? | | %[ =#???????????????????????????????????????? | | #???????????????????????????????????????? | | #???????????????????????????#???????????? | | # ##?????????????????????????? #???????????? | | # #????????????????????????? #???????????? | | # %#???????????????????????? #???????????? | | #?# % #??????????????????????? ##??????????? | | ??# % #????????????????????? k ?????????? | | ??# #?????????????###???? #???????????? | | ### #???????????### #### #???????????? | | #############;;;;;;; #???????????? | | # ; @ ; #???????????? | | # ==[ g%%l ; #???????????? | | ### # [!%[p%g] ; #???????????? | | ??# # =[= p]][l ; #???????????? | | ### # g% %!!!! ; ug #????A??????? | | # i [[g ]"!! R ; g A ??????????? | | # "" ; ; g [ ##??????????? | | " + " ; ; p ug #???????????? | | "%"# " # ;########R#???????????? | | " # = " # ##????????#???????????? | | ### # " # #?????????????????????? | | ??# # # #?????????????????????? | | ??# ####################?????????????????????? | | ??# #????????????????????????????????????????? | | ??# #????????????????????????????????????????? | | ??+ #????????????????????????????????????????? | | ??# ?????????????????????????????????????????? | | ??# ?????????????????????????????????????????? | | ??# ^ ?????????????????????????????????????????? | | ??# ?????????????????????????????????????????? | | ??# % ?????????????????????????????????????????? | | ??? ?????????????????????????????????????????? | | ????? ?????????????????????????????????????????? | | ?????????????????????????????????????????????????? | | ?????????????????????????????????????????????????? | +----------------------------------------------------+ Best States ------------- Heat Dissipation 78 Energy Generation 25 Energy Capacity 325 Matter Stores 396 Matter Capacity 550 Sight Range 20 Terrain Scan Range 20 Terrain Scan Density 10 Armor Coverage 600 Resistance: KI 20 Resistance: TH 20 Evasion (%) 55 Targeting Accuracy 13 Target Analysis 8 Recoil Reduction 6 Particle Charging 15 Offensive Hacking 22 Defensive Hacking 12 Relay Coupler Types 3 Relay Coupler Value 61 Item Schematics ----------------- Launcher Guidance Computer | -6/Factory | Scanalyzed Hvy. EM Shotgun | -6/Factory | Scanalyzed Robot Schematics ------------------ None Fabricated ------------ Lightning Gun | x1 | -7/Factory | Preloaded Hvy. EM Shotgun | x1 | -6/Factory S-27 Virus | x4 | -5/Factory | Preloaded Hvy. EM Shotgun | x1 | -5/Factory Alien Tech Used ----------------- None Achievements -------------- None Challenges ------------ None Game ------ Seed SubdwellerPulseWheel Manual? 0 Play Time 01:19:01 Cumulative 473.2 hours Start 2023.07.18 @ 10:36:31 End 2023.07.18 @ 11:54:34 Sessions 1 Manual Loads 0 Difficulty Rogue Special Mode None Game No. 373 Rogue 154 Adventurer 76 Explorer 143 Win Type - Total 22 Types 19/0/2/0/0/0/0/1/0 Lore% 67 Gallery% 87 Achievement% 71 Wizard Run 0 Options --------- ASCII 0 Keyboard 1 Movement Numpad Keybinds 0 Fullscreen 2 Font 18/X11Bold Map View 76x50 Tactical HUD 1 Map Filters NONE Filters NONE Steam 1 RUN: bbd2fda6-43b4-44de-9e7e-a57b9caa1dbc